[Event "Championnat du monde jeunes U10"]
[Date "2024.11.17"]
[White "Wang, Rocky"]
[Black "Zhu, Linxi"]
[WhiteElo "1853"]
[BlackElo "2100"]
[Round "3.4"]
[Result "0-1"]
[TimeControl "5400+30"]

1. e4 {[%clk 1:30:57]} 1... c5 {[%clk 1:30:47]} 2. Nf3 {[%clk 1:31:17]} 2... d6
{[%clk 1:31:09]} 3. d4 {[%clk 1:31:21]} 3... cxd4 {[%clk 1:31:34]} 4. Nxd4
{[%clk 1:31:47]} 4... Nf6 {[%clk 1:31:56]} 5. Nc3 {[%clk 1:32:09]} 5... a6
{[%clk 1:32:23]} 6. Rg1 {[%clk 1:31:44]} 6... Nc6 {[%clk 1:31:56]} 7. g4 {[%clk
1:31:47]} 7... g6 {[%clk 1:31:02]} 8. g5 {[%clk 1:28:47]} 8... Nd7 {[%clk
1:31:16]} 9. Be3 {[%clk 1:28:23]} 9... h6 {[%clk 1:30:39]} 10. h4 {[%clk
1:23:03]} 10... hxg5 {[%clk 1:29:29]} 11. hxg5 {[%clk 1:23:15]} 11... Bg7 {[%clk
1:27:49]} 12. Qd2 {[%clk 1:21:05]} 12... Nde5 {[%clk 1:24:30]} 13. Be2 {[%clk
1:19:54]} 13... Ng4 {[%clk 1:24:05]} 14. Bxg4 {[%clk 1:14:50]} 14... Bxg4 {[%clk
1:24:17]} 15. f4 {[%clk 1:14:55]} 15... Qc8 {[%clk 1:01:31]} 16. Nd5 {[%clk
1:10:48]} 16... Nxd4 {[%clk 0:55:20]} 17. Bxd4 {[%clk 1:10:49]} 17... Bxd4
{[%clk 0:54:55]} 18. Qxd4 {[%clk 1:11:06]} 18... Rh2 {[%clk 0:51:29]} 19. c4
{[%clk 0:50:20]} 19... Rb8 {[%clk 0:39:30]} 20. Nb6 {[%clk 0:38:08]} 20... Qe6
{[%clk 0:39:47]} 21. Rg2 {[%clk 0:36:33]} 21... Rh4 {[%clk 0:32:48]} 22. Nd5
{[%clk 0:33:13]} 22... Rc8 {[%clk 0:31:04]} 23. Kf2 {[%clk 0:33:23]} 23... b5
{[%clk 0:23:51]} 24. Qa7 {[%clk 0:21:02]} 24... Kf8 {[%clk 0:23:39]} 25. Ne3
{[%clk 0:14:32]} 25... Qxe4 {[%clk 0:22:00]} 26. Nd5 {[%clk 0:13:38]} 26... Rxc4
{[%clk 0:19:28]} 27. Ne3 {[%clk 0:12:24]} 27... Qxf4+ {[%clk 0:18:14]} 28. Kg1
{[%clk 0:12:46]} 28... Rc5 {[%clk 0:17:57]} 29. Re1 {[%clk 0:12:34]} 29... Re5
{[%clk 0:18:00]} 30. Nc2 {[%clk 0:10:51]} 30... Rxe1+ {[%clk 0:18:20]} 31. Nxe1
{[%clk 0:11:13]} 31... Bh3 {[%clk 0:17:17]} 32. Qa8+ {[%clk 0:10:58]} 32... Kg7
{[%clk 0:17:38]} 33. Rf2 {[%clk 0:11:03]} 33... Qxg5+ {[%clk 0:17:53]} 34. Ng2
{[%clk 0:11:16]} 34... Bxg2 {[%clk 0:17:57]} 35. Rxg2 {[%clk 0:11:32]} 35...
Qc1+ {[%clk 0:17:59]} 36. Kf2 {[%clk 0:11:54]} 36... Rf4+ {[%clk 0:18:23]} 37.
Ke2 {[%clk 0:12:15]} 37... Qf1+ {[%clk 0:18:46]} 38. Kd2 {[%clk 0:12:30]} 38...
Rd4+ {[%clk 0:19:02]} 0-1

[Variant "Standard"]
[Site "Europe Echecs"]

[Event "Championnat du monde jeunes U10"]
[Date "2024.11.17"]
[White "Mulay, Vivan Prakash"]
[Black "Xia, Joshua"]
[WhiteElo "1823"]
[BlackElo "2052"]
[Round "3.5"]
[Result "1-0"]
[TimeControl "5400+30"]

1. e4 {[%clk 1:30:50]} 1... c5 {[%clk 1:30:57]} 2. Nf3 {[%clk 1:31:06]} 2... d6
{[%clk 1:31:21]} 3. d4 {[%clk 1:31:15]} 3... cxd4 {[%clk 1:31:46]} 4. Nxd4
{[%clk 1:31:36]} 4... Nf6 {[%clk 1:32:11]} 5. f3 {[%clk 1:31:50]} 5... e5 {[%clk
1:32:37]} 6. Nb3 {[%clk 1:32:10]} 6... d5 {[%clk 1:33:03]} 7. Bg5 {[%clk
1:32:34]} 7... d4 {[%clk 1:33:25]} 8. c3 {[%clk 1:32:58]} 8... Nc6 {[%clk
1:33:52]} 9. Bb5 {[%clk 1:33:21]} 9... h6 {[%clk 1:34:03]} 10. Bh4 {[%clk
1:33:39]} 10... Qb6 {[%clk 1:33:47]} 11. Bxc6+ {[%clk 1:33:50]} 11... bxc6
{[%clk 1:34:03]} 12. cxd4 {[%clk 1:34:08]} 12... a5 {[%clk 1:33:08]} 13. dxe5
{[%clk 1:31:26]} 13... Bb4+ {[%clk 1:33:13]} 14. Nc3 {[%clk 1:29:15]} 14...
Bxc3+ {[%clk 1:32:59]} 15. bxc3 {[%clk 1:29:29]} 15... Qe3+ {[%clk 1:33:18]} 16.
Qe2 {[%clk 1:29:37]} 16... Qxc3+ {[%clk 1:33:42]} 17. Qd2 {[%clk 1:29:59]} 17...
Qxe5 {[%clk 1:33:30]} 18. Bg3 {[%clk 1:29:37]} 18... Qb5 {[%clk 1:31:31]} 19.
Bd6 {[%clk 1:28:03]} 19... Ba6 {[%clk 1:29:23]} 20. Nd4 {[%clk 1:22:40]} 20...
Qg5 {[%clk 1:24:12]} 21. f4 {[%clk 1:06:25]} 21... Qg6 {[%clk 1:22:18]} 22. Nf5
{[%clk 0:37:08]} 22... Bb5 {[%clk 0:50:39]} 23. Qd4 {[%clk 0:34:53]} 23... Nd7
{[%clk 0:35:20]} 24. Nxg7+ {[%clk 0:34:51]} 24... Kd8 {[%clk 0:34:57]} 25. Ne6+
{[%clk 0:35:02]} 25... Kc8 {[%clk 0:35:20]} 26. Qxh8+ {[%clk 0:33:20]} 26... Kb7
{[%clk 0:35:46]} 27. Qd4 {[%clk 0:33:04]} 27... Qxg2 {[%clk 0:34:02]} 28. O-O-O
{[%clk 0:32:40]} 28... fxe6 {[%clk 0:34:22]} 29. a4 {[%clk 0:31:32]} 29... c5
{[%clk 0:34:36]} 30. Qd2 {[%clk 0:24:20]} 30... Qxd2+ {[%clk 0:33:53]} 31. Rxd2
{[%clk 0:23:46]} 31... Bxa4 {[%clk 0:34:03]} 32. Rg1 {[%clk 0:23:34]} 32... Bb3
{[%clk 0:31:34]} 33. Rg7 {[%clk 0:20:46]} 33... Kc6 {[%clk 0:31:39]} 34. f5
{[%clk 0:20:42]} 34... exf5 {[%clk 0:32:01]} 35. exf5 {[%clk 0:20:41]} 35... c4
{[%clk 0:21:47]} 36. Kb2 {[%clk 0:18:43]} 36... Rc8 {[%clk 0:19:44]} 37. Ba3
{[%clk 0:16:50]} 37... Ne5 {[%clk 0:13:47]} 38. Kc3 {[%clk 0:13:59]} 38... Re8
{[%clk 0:13:00]} 39. Re2 {[%clk 0:12:56]} 39... Bd1 {[%clk 0:10:03]} 40. Re1
{[%clk 0:12:34]} 40... Ba4 {[%clk 0:07:41]} 41. f6 {[%clk 0:12:36]} 41... Rd8
{[%clk 0:07:51]} 42. Rxe5 {[%clk 0:11:35]} 42... Rd3+ {[%clk 0:07:52]} 43. Kxc4
{[%clk 0:11:52]} 43... Rxa3 {[%clk 0:08:17]} 44. Re6# 1-0

[Variant "Standard"]
[Site "Europe Echecs"]

[Event "Championnat du monde jeunes U10"]
[Date "2024.11.17"]
[White "Filipovs, Sergejs"]
[Black "Ramesan, Raunak Amit"]
[WhiteElo "2012"]
[BlackElo "1802"]
[Round "3.6"]
[Result "0-1"]
[TimeControl "5400+30"]

1. e4 {[%clk 1:30:58]} 1... e5 {[%clk 1:30:49]} 2. Nf3 {[%clk 1:31:22]} 2... Nc6
{[%clk 1:31:12]} 3. d4 {[%clk 1:31:46]} 3... exd4 {[%clk 1:31:36]} 4. Nxd4
{[%clk 1:32:10]} 4... Nf6 {[%clk 1:31:52]} 5. Nxc6 {[%clk 1:32:31]} 5... bxc6
{[%clk 1:32:14]} 6. Bd3 {[%clk 1:32:55]} 6... d5 {[%clk 1:32:24]} 7. e5 {[%clk
1:33:18]} 7... Ng4 {[%clk 1:31:56]} 8. O-O {[%clk 1:33:39]} 8... Bc5 {[%clk
1:31:27]} 9. Qe2 {[%clk 1:33:55]} 9... Qe7 {[%clk 1:22:25]} 10. Bf4 {[%clk
1:34:15]} 10... g5 {[%clk 1:18:01]} 11. Bd2 {[%clk 1:34:38]} 11... Nxe5 {[%clk
1:08:45]} 12. Re1 {[%clk 1:34:49]} 12... Nxd3 {[%clk 1:05:46]} 13. Qxd3 {[%clk
1:33:27]} 13... Be6 {[%clk 1:03:07]} 14. b4 {[%clk 1:27:49]} 14... Bb6 {[%clk
0:49:50]} 15. Nc3 {[%clk 1:23:14]} 15... Qf6 {[%clk 0:43:51]} 16. Qg3 {[%clk
1:13:53]} 16... h6 {[%clk 0:42:14]} 17. b5 {[%clk 1:08:59]} 17... O-O-O {[%clk
0:39:48]} 18. bxc6 {[%clk 1:08:15]} 18... Rd6 {[%clk 0:38:08]} 19. Nb5 {[%clk
0:59:25]} 19... Rxc6 {[%clk 0:36:00]} 20. c4 {[%clk 0:51:03]} 20... Rxc4 {[%clk
0:33:13]} 21. Rac1 {[%clk 0:49:10]} 21... Rg8 {[%clk 0:30:37]} 22. a4 {[%clk
0:45:59]} 22... a6 {[%clk 0:29:09]} 23. Rxc4 {[%clk 0:41:52]} 23... dxc4 {[%clk
0:29:28]} 24. Nc3 {[%clk 0:39:43]} 24... Rd8 {[%clk 0:28:18]} 25. Ne4 {[%clk
0:39:19]} 25... Qf5 {[%clk 0:26:17]} 26. Qc3 {[%clk 0:34:31]} 26... Bd5 {[%clk
0:24:23]} 27. a5 {[%clk 0:32:50]} 27... Ba7 {[%clk 0:23:33]} 0-1

[Variant "Standard"]
[Site "Europe Echecs"]

[Event "Championnat du monde jeunes U10"]
[Date "2024.11.17"]
[White "Tulegen, Ramazan"]
[Black "Ten Dam, Bram"]
[WhiteElo "1818"]
[BlackElo "2012"]
[Round "3.7"]
[Result "1-0"]
[TimeControl "5400+30"]

1. e4 {[%clk 1:30:51]} 1... c5 {[%clk 1:30:52]} 2. Nf3 {[%clk 1:31:10]} 2... d6
{[%clk 1:31:13]} 3. d4 {[%clk 1:31:34]} 3... cxd4 {[%clk 1:31:32]} 4. Nxd4
{[%clk 1:31:59]} 4... Nf6 {[%clk 1:31:55]} 5. Nc3 {[%clk 1:32:15]} 5... g6
{[%clk 1:32:19]} 6. Be3 {[%clk 1:32:32]} 6... Bg7 {[%clk 1:32:41]} 7. f3 {[%clk
1:32:51]} 7... Nc6 {[%clk 1:33:04]} 8. Qd2 {[%clk 1:33:13]} 8... h5 {[%clk
1:33:24]} 9. O-O-O {[%clk 1:32:43]} 9... O-O {[%clk 1:33:27]} 10. Bc4 {[%clk
1:25:03]} 10... Bd7 {[%clk 1:32:42]} 11. h3 {[%clk 1:22:12]} 11... Na5 {[%clk
1:31:33]} 12. Bb3 {[%clk 1:20:55]} 12... Rb8 {[%clk 1:30:24]} 13. g4 {[%clk
1:20:57]} 13... b5 {[%clk 1:27:36]} 14. Nd5 {[%clk 1:17:02]} 14... Nxb3+ {[%clk
1:22:05]} 15. cxb3 {[%clk 1:16:41]} 15... h4 {[%clk 1:13:36]} 16. Bh6 {[%clk
1:15:04]} 16... Nh7 {[%clk 1:08:30]} 17. Bxg7 {[%clk 1:13:21]} 17... Kxg7 {[%clk
1:08:44]} 18. Kb1 {[%clk 1:13:44]} 18... Rc8 {[%clk 1:05:05]} 19. Rhg1 {[%clk
1:11:49]} 19... a5 {[%clk 0:58:50]} 20. Nf5+ {[%clk 0:59:03]} 20... gxf5 {[%clk
0:51:11]} 21. gxf5+ {[%clk 0:59:26]} 21... Kh8 {[%clk 0:51:31]} 22. Qh6 Rg8
{[%clk 0:50:32]} 23. Rxg8+ {[%clk 0:57:03]} 23... Qxg8 {[%clk 0:50:45]} 24. Nxe7
{[%clk 0:57:26]} 24... Qg5 {[%clk 0:40:30]} 25. Qxd6 {[%clk 0:54:28]} 25... Rd8
{[%clk 0:34:09]} 26. Nd5 {[%clk 0:35:19]} 26... Bxf5 {[%clk 0:18:18]} 27. Qe5+
{[%clk 0:35:01]} 27... Nf6 {[%clk 0:18:04]} 28. Ka1 {[%clk 0:29:01]} 28... Re8
{[%clk 0:13:56]} 29. Qxf6+ {[%clk 0:28:56]} 29... Qxf6 {[%clk 0:14:16]} 30. Nxf6
{[%clk 0:29:20]} 30... Re6 {[%clk 0:14:08]} 31. Nh5 {[%clk 0:24:23]} 31... Bg6
{[%clk 0:10:20]} 32. Nf4 {[%clk 0:24:39]} 32... Rf6 {[%clk 0:10:23]} 33. Nxg6+
{[%clk 0:24:47]} 33... Rxg6 {[%clk 0:10:27]} 34. a4 {[%clk 0:24:54]} 34... b4
{[%clk 0:09:31]} 35. Rd5 {[%clk 0:25:18]} 35... Rg3 {[%clk 0:09:48]} 36. Rh5+
{[%clk 0:25:38]} 36... Kg7 {[%clk 0:10:11]} 37. Rxh4 {[%clk 0:26:02]} 37... Rxf3
{[%clk 0:09:32]} 38. Rh5 {[%clk 0:25:41]} 38... Rxb3 {[%clk 0:08:48]} 39. Rxa5
{[%clk 0:25:57]} 39... Re3 {[%clk 0:08:29]} 40. Ka2 {[%clk 0:26:13]} 40... Rxe4
{[%clk 0:08:51]} 41. Rb5 {[%clk 0:26:17]} 41... Kg6 {[%clk 0:08:20]} 42. a5
{[%clk 0:25:25]} 42... f5 {[%clk 0:08:04]} 43. Rb6+ {[%clk 0:25:15]} 43... Kg5
{[%clk 0:08:25]} 44. a6 {[%clk 0:25:32]} 44... Re5 {[%clk 0:08:36]} 45. Kb3
{[%clk 0:25:42]} 45... Ra5 {[%clk 0:08:18]} 46. Kxb4 {[%clk 0:25:47]} 46... Ra1
{[%clk 0:08:41]} 47. Kb5 {[%clk 0:25:03]} 47... f4 {[%clk 0:09:01]} 48. Rb8
{[%clk 0:25:27]} 48... Ra2 {[%clk 0:09:06]} 49. b4 {[%clk 0:25:41]} 49... f3
{[%clk 0:09:22]} 50. Rf8 {[%clk 0:26:06]} 50... f2 {[%clk 0:09:42]} 51. a7
{[%clk 0:26:24]} 51... Rxa7 {[%clk 0:09:25]} 52. Rxf2 {[%clk 0:26:45]} 1-0

[Variant "Standard"]
[Site "Europe Echecs"]

[Event "Championnat du monde jeunes U10"]
[Date "2024.11.17"]
[White "Bolashakov, Nurali"]
[Black "Anetov, Amirzhan"]
[WhiteElo "2005"]
[BlackElo "1767"]
[Round "3.8"]
[Result "1/2-1/2"]
[TimeControl "5400+30"]

1. e4 {[%clk 1:30:56]} 1... c5 {[%clk 1:30:57]} 2. Nf3 {[%clk 1:31:16]} 2... d6
{[%clk 1:31:23]} 3. d4 {[%clk 1:31:26]} 3... cxd4 {[%clk 1:31:49]} 4. Nxd4
{[%clk 1:31:44]} 4... Nf6 {[%clk 1:32:16]} 5. Nc3 {[%clk 1:32:00]} 5... a6
{[%clk 1:32:45]} 6. h3 {[%clk 1:31:14]} 6... e6 {[%clk 1:33:08]} 7. g4 {[%clk
1:31:03]} 7... Be7 {[%clk 1:33:33]} 8. g5 {[%clk 1:30:37]} 8... Nfd7 {[%clk
1:33:59]} 9. Be3 {[%clk 1:30:59]} 9... b5 {[%clk 1:19:34]} 10. a3 {[%clk
1:30:17]} 10... Bb7 {[%clk 1:18:27]} 11. Qd2 {[%clk 1:28:29]} 11... Nc6 {[%clk
1:14:30]} 12. Nxc6 {[%clk 1:19:20]} 12... Bxc6 {[%clk 1:14:54]} 13. h4 {[%clk
1:14:11]} 13... Rb8 14. f3 {[%clk 1:03:23]} 14... h6 {[%clk 0:55:45]} 15. gxh6
{[%clk 0:52:53]} 15... Bxh4+ {[%clk 0:52:52]} 16. Ke2 {[%clk 0:48:14]} 16... Ne5
{[%clk 0:41:41]} 17. hxg7 {[%clk 0:46:56]} 17... Rg8 {[%clk 0:42:05]} 18. Bd4
{[%clk 0:31:53]} 18... Bf6 {[%clk 0:36:49]} 19. Qh6 {[%clk 0:24:54]} 19... Bxg7
{[%clk 0:32:57]} 20. Qh7 {[%clk 0:23:48]} 20... Kf8 {[%clk 0:33:21]} 21. Qh4
{[%clk 0:19:47]} 21... Qxh4 {[%clk 0:19:16]} 22. Rxh4 {[%clk 0:20:07]} 22... Bf6
{[%clk 0:19:39]} 23. Rh1 {[%clk 0:15:11]} 23... Ke7 {[%clk 0:17:18]} 24. Nd1
{[%clk 0:08:56]} 24... Rg3 {[%clk 0:13:08]} 25. Rh3 {[%clk 0:08:43]} 25... Rbg8
{[%clk 0:11:58]} 26. Rxg3 {[%clk 0:08:59]} 26... Rxg3 {[%clk 0:12:23]} 27. Ne3
{[%clk 0:08:37]} 27... Bg5 {[%clk 0:10:12]} 28. Bxe5 {[%clk 0:08:41]} 28... dxe5
{[%clk 0:10:38]} 29. Kf2 {[%clk 0:08:27]} 29... Bf4 {[%clk 0:10:32]} 30. Ng2
{[%clk 0:08:43]} 30... f5 {[%clk 0:10:30]} 31. Nxf4 exf4 {[%clk 0:10:55]} 32.
Bd3 {[%clk 0:07:15]} 32... fxe4 {[%clk 0:11:04]} 33. fxe4 {[%clk 0:07:40]} 33...
Rh3 {[%clk 0:10:41]} 34. Rg1 {[%clk 0:05:42]} 34... Kf6 {[%clk 0:10:07]} 35. Rg4
{[%clk 0:04:57]} 35... Ke5 {[%clk 0:09:58]} 36. Rg5+ {[%clk 0:04:46]} 36... Kd6
{[%clk 0:07:02]} 37. Rg4 {[%clk 0:04:16]} 37... e5 {[%clk 0:07:05]} 38. Rg6+
{[%clk 0:04:39]} 38... Kd7 {[%clk 0:06:22]} 39. Rg5 {[%clk 0:04:57]} 1/2-1/2

[Variant "Standard"]
[Site "Europe Echecs"]

[Event "Championnat du monde jeunes U10"]
[Date "2024.11.17"]
[White "Zhou, Guoyu"]
[Black "Ivanovic, Leonid"]
[WhiteElo "1809"]
[BlackElo "1990"]
[Round "3.9"]
[Result "1-0"]
[TimeControl "5400+30"]

1. d4 {[%clk 1:30:57]} 1... Nf6 {[%clk 1:30:48]} 2. c4 {[%clk 1:31:03]} 2... e6
{[%clk 1:30:49]} 3. Nc3 {[%clk 1:31:28]} 3... Bb4 {[%clk 1:30:41]} 4. Bg5 {[%clk
1:30:23]} 4... h6 {[%clk 1:14:09]} 5. Bxf6 {[%clk 1:30:04]} 5... Qxf6 {[%clk
1:14:36]} 6. Nf3 {[%clk 1:28:21]} 6... c5 {[%clk 1:11:25]} 7. e3 {[%clk
1:28:29]} 7... O-O {[%clk 1:11:35]} 8. Be2 {[%clk 1:28:48]} 8... Nc6 {[%clk
1:10:15]} 9. O-O {[%clk 1:28:43]} 9... d6 {[%clk 1:09:22]} 10. Ne4 {[%clk
1:25:48]} 10... Qe7 {[%clk 1:07:05]} 11. Rc1 {[%clk 1:21:38]} 11... f5 {[%clk
1:00:58]} 12. Ng3 {[%clk 1:21:04]} 12... e5 {[%clk 0:58:42]} 13. d5 {[%clk
1:14:36]} 13... Nb8 {[%clk 0:56:33]} 14. a3 {[%clk 1:12:22]} 14... Ba5 {[%clk
0:56:19]} 15. Qa4 {[%clk 1:09:28]} 15... Bd8 {[%clk 0:53:41]} 16. b4 {[%clk
1:07:59]} 16... e4 {[%clk 0:51:14]} 17. Nd2 {[%clk 1:07:33]} 17... Nd7 {[%clk
0:47:06]} 18. Qc2 {[%clk 1:04:20]} 18... a5 {[%clk 0:34:07]} 19. bxc5 {[%clk
0:59:49]} 19... Nxc5 {[%clk 0:34:08]} 20. Nb3 {[%clk 1:00:03]} 20... Bb6 {[%clk
0:21:26]} 21. Nd4 {[%clk 0:23:32]} 21... f4 {[%clk 0:11:50]} 22. exf4 {[%clk
0:23:17]} 22... Rxf4 {[%clk 0:12:11]} 23. Rb1 {[%clk 0:21:44]} 23... Ra6 {[%clk
0:11:27]} 24. Qd2 {[%clk 0:19:57]} 24... Qe5 {[%clk 0:09:30]} 25. Nc2 {[%clk
0:18:26]} 25... Bd8 {[%clk 0:04:56]} 26. Ne3 {[%clk 0:10:54]} 26... Bg5 {[%clk
0:04:42]} 27. Qb2 {[%clk 0:10:08]} 27... Qxb2 {[%clk 0:04:30]} 28. Rxb2 {[%clk
0:10:21]} 28... Bd7 {[%clk 0:04:30]} 29. Rfb1 {[%clk 0:06:23]} 29... Kf8 {[%clk
0:03:09]} 30. Rxb7 {[%clk 0:02:59]} 30... Nxb7 {[%clk 0:02:29]} 31. Rxb7 {[%clk
0:03:27]} 31... Be8 {[%clk 0:01:07]} 32. Rb8 {[%clk 0:02:15]} 32... Kf7 {[%clk
0:00:33]} 33. c5 {[%clk 0:01:40]} 33... Ra7 {[%clk 0:00:47]} 34. c6 {[%clk
0:01:50]} 34... Rc7 {[%clk 0:00:33]} 35. Bh5+ {[%clk 0:01:29]} 35... g6 {[%clk
0:00:54]} 36. Bxg6+ {[%clk 0:01:51]} 36... Kxg6 {[%clk 0:01:21]} 37. Rxe8 {[%clk
0:02:20]} 37... Rff7 {[%clk 0:01:02]} 38. Nxe4 {[%clk 0:01:42]} 38... Be7 {[%clk
0:00:35]} 39. Rg8+ {[%clk 0:01:26]} 39... Kh7 {[%clk 0:00:46]} 40. Ra8 {[%clk
0:01:51]} 40... Kg7 1-0

[Variant "Standard"]
[Site "Europe Echecs"]

[Event "Championnat du monde jeunes U10"]
[Date "2024.11.17"]
[White "Azimov, Yasin"]
[Black "Advik Amit Agrawal"]
[WhiteElo "1759"]
[BlackElo "1982"]
[Round "3.10"]
[Result "0-1"]
[TimeControl "5400+30"]

1. d4 {[%clk 1:30:56]} 1... e6 {[%clk 1:30:17]} 2. c4 {[%clk 1:31:19]} 2... Nf6
{[%clk 1:30:40]} 3. Nf3 {[%clk 1:31:41]} 3... d5 {[%clk 1:30:48]} 4. g3 {[%clk
1:32:04]} 4... Bb4+ {[%clk 1:30:54]} 5. Nbd2 {[%clk 1:31:37]} 5... dxc4 {[%clk
1:30:58]} 6. Qa4+ {[%clk 1:30:13]} 6... Nc6 {[%clk 1:31:12]} 7. a3 {[%clk
1:30:28]} 7... Bxd2+ 8. Bxd2 {[%clk 1:30:50]} 8... Qd5 {[%clk 1:29:32]} 9. Bc3
{[%clk 1:25:33]} 9... b5 {[%clk 1:29:01]} 10. Qd1 {[%clk 1:24:52]} 10... Bb7
{[%clk 1:19:43]} 11. Bg2 {[%clk 1:23:38]} 11... Qd6 {[%clk 1:17:59]} 12. O-O
{[%clk 1:20:33]} 12... O-O {[%clk 1:17:12]} 13. Qc2 {[%clk 1:14:34]} 13... a5
{[%clk 1:00:56]} 14. e4 {[%clk 1:10:43]} 14... Nd7 {[%clk 1:00:23]} 15. e5
{[%clk 1:01:07]} 15... Qe7 {[%clk 1:00:20]} 16. Bd2 {[%clk 0:59:42]} 16... h6
{[%clk 0:59:35]} 17. a4 {[%clk 0:55:48]} 17... bxa4 {[%clk 0:59:31]} 18. Qxc4
{[%clk 0:53:34]} 18... Nb6 {[%clk 0:59:37]} 19. Qc2 {[%clk 0:50:15]} 19... Nb4
{[%clk 0:58:32]} 20. Bxb4 {[%clk 0:50:32]} 20... axb4 {[%clk 0:58:44]} 21. Ng5
{[%clk 0:50:46]} 21... hxg5 {[%clk 0:57:51]} 22. Bxb7 {[%clk 0:51:08]} 22... Ra5
{[%clk 0:53:17]} 23. Bc6 {[%clk 0:49:36]} 23... Rd8 {[%clk 0:46:03]} 24. Rfd1
{[%clk 0:48:05]} 24... a3 {[%clk 0:45:59]} 25. bxa3 {[%clk 0:48:11]} 25... Rxa3
{[%clk 0:46:21]} 26. Rxa3 {[%clk 0:30:56]} 26... bxa3 {[%clk 0:46:42]} 27. Qc3
{[%clk 0:31:14]} 27... Nd5 {[%clk 0:46:25]} 28. Bxd5 {[%clk 0:30:30]} 28... Rxd5
{[%clk 0:45:57]} 29. Ra1 {[%clk 0:30:52]} 29... Qd8 {[%clk 0:44:21]} 30. Qxa3
{[%clk 0:29:08]} 30... Rxd4 {[%clk 0:44:32]} 31. Qa8 {[%clk 0:29:27]} 31... c5
{[%clk 0:43:41]} 32. Kg2 {[%clk 0:27:29]} 32... g4 {[%clk 0:42:44]} 33. h3
{[%clk 0:27:27]} 33... gxh3+ {[%clk 0:42:03]} 34. Kxh3 {[%clk 0:27:49]} 34...
Rd1 {[%clk 0:38:44]} 35. f4 {[%clk 0:22:48]} 35... Qxa8 {[%clk 0:38:25]} 36.
Rxa8+ {[%clk 0:23:17]} 36... Kh7 {[%clk 0:38:39]} 37. Rc8 {[%clk 0:23:41]} 37...
Rc1 {[%clk 0:38:54]} 38. Kg4 {[%clk 0:23:15]} 38... Rc3 {[%clk 0:39:15]} 39. Rc7
{[%clk 0:22:58]} 39... Kg6 {[%clk 0:39:28]} 40. Rc6 {[%clk 0:23:18]} 40... Rc4
{[%clk 0:38:23]} 41. Rc8 {[%clk 0:19:43]} 41... f6 {[%clk 0:31:30]} 42. exf6
{[%clk 0:18:21]} 42... gxf6 {[%clk 0:31:43]} 43. Rc7 {[%clk 0:17:42]} 43... Rc3
{[%clk 0:30:34]} 44. Re7 {[%clk 0:17:20]} 44... f5+ {[%clk 0:30:47]} 45. Kh3
{[%clk 0:17:02]} 45... Kf6 {[%clk 0:31:10]} 46. Rc7 {[%clk 0:17:30]} 46... Rc2
{[%clk 0:30:17]} 47. Rb7 {[%clk 0:17:35]} 47... c4 {[%clk 0:30:29]} 48. Rc7
{[%clk 0:18:03]} 48... c3 {[%clk 0:30:01]} 49. Rb7 {[%clk 0:17:20]} 49... Kg6
{[%clk 0:26:08]} 50. Rc7 {[%clk 0:17:32]} 50... Kf6 {[%clk 0:25:38]} 51. Rb7
{[%clk 0:17:57]} 51... Rf2 {[%clk 0:23:46]} 52. Rc7 {[%clk 0:18:18]} 52... c2
{[%clk 0:24:10]} 53. g4 {[%clk 0:17:45]} 53... Rf3+ {[%clk 0:24:17]} 54. Kg2
{[%clk 0:18:08]} 54... fxg4 {[%clk 0:24:36]} 55. Rxc2 {[%clk 0:18:32]} 55...
Rxf4 {[%clk 0:24:58]} 56. Kg3 {[%clk 0:18:54]} 56... Kf5 {[%clk 0:24:21]} 57.
Rc8 {[%clk 0:19:14]} 57... Rf3+ {[%clk 0:24:43]} 58. Kg2 {[%clk 0:19:21]} 58...
e5 {[%clk 0:24:51]} 59. Rf8+ {[%clk 0:19:09]} 59... Ke4 {[%clk 0:25:06]} 60. Rg8
{[%clk 0:19:13]} 60... g3 {[%clk 0:24:29]} 61. Rg4+ {[%clk 0:19:37]} 61... Ke3
{[%clk 0:23:37]} 62. Rg8 {[%clk 0:19:42]} 62... e4 {[%clk 0:23:52]} 63. Re8
{[%clk 0:20:06]} 63... Rf7 {[%clk 0:23:48]} 64. Kxg3 {[%clk 0:19:19]} 64... Rg7+
{[%clk 0:24:04]} 65. Kh2 {[%clk 0:19:41]} 65... Kf2 {[%clk 0:24:13]} 66. Rf8+
{[%clk 0:19:58]} 66... Ke2 {[%clk 0:24:34]} 67. Ra8 {[%clk 0:18:35]} 67... e3
{[%clk 0:24:50]} 68. Ra2+ {[%clk 0:18:58]} 68... Kf3 {[%clk 0:25:09]} 69. Ra8
{[%clk 0:18:36]} 69... e2 {[%clk 0:25:19]} 70. Rf8+ {[%clk 0:18:32]} 70... Ke3
{[%clk 0:25:32]} 71. Re8+ {[%clk 0:18:38]} 71... Kf2 {[%clk 0:25:52]} 72. Rf8+
{[%clk 0:18:30]} 72... Ke1 {[%clk 0:26:13]} 73. Re8 {[%clk 0:18:02]} 73... Rd7
{[%clk 0:26:28]} 74. Ra8 {[%clk 0:18:01]} 74... Kd2 {[%clk 0:26:51]} 0-1

[Variant "Standard"]
[Site "Europe Echecs"]